Cogmind - Beta 14 @@@ ROGUE MODE // 2025.03.23 @ 20:49:49 Player: nitr0gen Result: Destroyed by DU-UCI(R) with Subdweller Laser Performance ------------- Evolutions (0) 0 Regions Visited (3) 600 Robots Destroyed (4) 20 Value Destroyed (64) 64 Prototype IDs (0) 0 Alien Tech Used (0) 0 Bonus (-34) -34 TOTAL SCORE: 650 Bonus ------- Friendly Fire -34 Cogmind --------- Core Integrity 0/250 Matter 270/300 Energy 66/100 System Corruption 0% Temperature Cool (8) Movement Walking (120) Location -10/Subcaves Parts ------- > --- POWER (1) -------- (None) > --- PROPULSION (2) --- Myomer Leg > --- UTILITY (2) ------ Small Storage Unit > --- WEAPON (2) ------- Beamcaster Battle Rifle > --- INVENTORY (8) ---- Improved Heat Sink Scrap Shield Fragment (48) Peak State ------------ > --- POWER ------------ (None) > --- PROPULSION ------- Myomer Leg > --- UTILITY ---------- Improved Heat Sink Small Storage Unit > --- WEAPON ----------- Beamcaster Battle Rifle > --- INVENTORY -------- Improved Heat Sink Scrap Shield Fragment [Rating: 18] Favorites ----------- Power Light Ion Engine Engine Light Ion Engine Propulsion Hover Unit Treads Light Treads Leg Aluminum Leg Wheel Subdweller Monowheel Hover Unit Hover Unit Utility ECM Suite Device ECM Suite Storage Small Storage Unit Protection Scrap Shield Weapon Assault Rifle Energy Gun EM Pulse Gun Ballistic Gun Assault Rifle Build | -11 -10 -10 -10 ------- Run | Yrd Mat Min Sub Slots Evolved . | . . . . Power . | . . . . Propulsion . | . . . . Utility . | . . . . Weapon . | . . . . Parts Attached 27 | 6 4 4 13 Power 4 | 1 . 2 1 Engine 4 | 1 . 2 1 Core . | . . . . Reactor . | . . . . Propulsion 8 | 2 2 1 3 Treads 2 | 2 . . . Leg 2 | . . 1 1 Wheel 2 | . . . 2 Hover 2 | . 2 . . Flight . | . . . . Utility 9 | 1 2 1 5 Device 5 | . 2 1 2 Storage 3 | 1 . . 2 Processor . | . . . . Hackware . | . . . . Protection 1 | . . . 1 Artifact . | . . . . Weapon 6 | 2 . . 4 Energy Gun 3 | 1 . . 2 Energy Cannon . | . . . . Ballistic Gun 3 | 1 . . 2 Ballistic Cannon . | . . . . Launcher . | . . . . Special Weapon . | . . . . Impact Weapon . | . . . . Slashing Weapon . | . . . . Piercing Weapon . | . . . . Special Melee Weapon . | . . . . Unidentified Prototypes . | . . . . Parts Lost 12 | . . 5 7 Power 3 | . . 1 2 Propulsion 2 | . . 2 . Utility 3 | . . . 3 Weapon 4 | . . 2 2 Highest Loss Streak 7 | . . 5 7 To Critical Strikes . | . . . . Average Slot Usage (%) 75 | . 96 82 56 Engine 13 | . 14 13 13 Treads 2 | . 24 . . Leg 6 | . . 4 10 Wheel 2 | . . . 6 Hover 10 | . 2 17 . Device 13 | . 11 21 1 Storage 6 | . 14 6 2 Protection 3 | . . . 10 Energy Gun 9 | . 14 8 9 Ballistic Gun 6 | . 14 8 . Peak Build Rating 18 | 6 7 7 18 Average Rating 6 | 3 6 5 8 On Entrance 4 | . 6 7 4 Naked Turns . | . . . . Heaviest Build 30 | 12 14 14 30 Greatest Support 40 | 40 40 12 30 Greatest Overweight (x) 2 | . 1 2 2 Average Overweight (x) . | . . . . Largest Inventory Capacity 8 | 8 8 8 8 Average Capacity 6 | 6 8 6 5 Most Carried 6 | 5 4 4 6 Average Carried 2 | 1 1 2 3 Final Capacity 8 | 8 8 5 8 Final Carried 3 | 1 2 3 2 Class Distribution -------------------- 100% | Mutant Dominant Class ---------------- Mutant | -10/Materials Mutant | -10/Mines Mutant | -10/Subcaves Resources | -11 -10 -10 -10 ----------- Run | Yrd Mat Min Sub Matter Collected 496 | 196 77 116 107 Remotely . | . . . . Salvage Created 99 | . . 99 . Parts 6 | . . 6 . Haulers Intercepted . | . . . . Recyclers Shooed . | . . . . Parts Field Recycled . | . . . . Retrieved Matter . | . . . . Parts Self-Destructed 19 | . . . 19 Prevented . | . . . . Kills | -11 -10 -10 -10 ------- Run | Yrd Mat Min Sub Combat Hostiles Destroyed 5 | . . 5 . Guns 4 | . . 4 . AOE 1 | . . 1 . Classes Destroyed 3 | . . 3 . Swarmer 3 | . . 3 . Grunt 1 | . . 1 . Assembled 1 | . . 1 . Best Kill Streak 3 | . . 3 . Combat Bots Only 3 | . . 3 . Max Kills in Single Turn 1 | . . 1 . Gunslinging . | . . . . Exploded 1 | . . 1 . Melee . | . . . . Uniques/NPCs Destroyed . | . . . . Combat | -11 -10 -10 -10 -------- Run | Yrd Mat Min Sub Hostile Shots Fired 113 | . 1 54 58 Missed 32 | . . 17 15 Damage Taken 1284 | . 10 347 927 Core 263 | . . 84 179 Absorbed by Shields . | . . . . Core Remaining (%) 100 | 100 . . . Volleys Fired 42 | . 1 33 8 Largest 2 | . 2 2 2 Hottest 80 | . 60 60 80 Shots Fired 79 | . 2 66 11 Gun 79 | . 2 66 11 Cannon . | . . . . Launcher . | . . . . Special . | . . . . Kinetic 39 | . 1 33 5 Thermal 2 | . . . 2 Explosive . | . . . . Electromagnetic 38 | . 1 33 4 Robot Hit Streak 4 | . 2 4 4 Robot Miss Streak 4 | . . 3 4 Penetration Max . | . . . . Secondary Targets 1 | . . 1 . Max Gunslinging Chain 1 | . . 1 . Shots Hit Robots 20 | . 2 13 5 Core Hits 11 | . 1 7 3 Critical Kills . | . . . . Critical Parts Destroyed . | . . . . Critical Strikes . | . . . . Melee Attacks . | . . . . Impact . | . . . . Slashing . | . . . . Piercing . | . . . . Sneak Attacks . | . . . . Combat Hostiles . | . . . . Follow-up Attacks . | . . . . Damage Inflicted 529 | . 29 298 202 Guns 354 | . 29 161 164 Cannons . | . . . . Explosions 175 | . . 137 38 Melee . | . . . . Ramming . | . . . . Kinetic 161 | . 14 54 93 Thermal 175 | . . 137 38 Explosive . | . . . . Electromagnetic 193 | . 15 107 71 Impact . | . . . . Slashing . | . . . . Piercing . | . . . . Highest Corruption . | . . . . Average Corruption . | . . . . Corruption Purged . | . . . . Corruption Blocked . | . . . . Overload Shots . | . . . . Overflow Damage . | . . . . Projectiles . | . . . . Explosions . | . . . . Melee . | . . . . Knockbacks . | . . . . Impact . | . . . . Kinetic . | . . . . Secondary . | . . . . Self-Inflicted Damage 50 | . . . 50 Shots 1 | . . . 1 Rammed . | . . . . Targets Rammed . | . . . . Kicked . | . . . . Crushed . | . . . . Highest Temperature 265 | . . 60 265 Average Temperature 34 | . . 23 115 Received Heat Transfer 636 | . 6 150 480 Siege Activations . | . . . . Robots Corrupted . | . . . . Combat Hostiles . | . . . . Parts Fried . | . . . . Impact Corruptions . | . . . . Robots Melted . | . . . . Combat Hostiles . | . . . . Parts Melted 1 | . . 1 . Heat Transferred 300 | . . 250 50 Parts Sabotaged . | . . . . Parts Stolen . | . . . . Parts Stripped . | . . . . Power Chain Reactions 3 | . . 2 1 Alert | -11 -10 -10 -10 ------- Run | Yrd Mat Min Sub Peak Influence 85 | . 30 85 . Initial 11 | . . 11 . Average 30 | . 6 38 . Maximum Alert Level . | . . . . Low Security (%) 100 | 100 100 100 . Level 1 . | . . . . Level 2 . | . . . . Level 3 . | . . . . Level 4 . | . . . . Level 5 . | . . . . High Security . | . . . . Max Security . | . . . . Squads Dispatched 1 | . 1 . . Investigation . | . . . . Extermination . | . . . . Reinforcement 1 | . 1 . . Assault . | . . . . Garrison . | . . . . Intercept . | . . . . Searches Triggered . | . . . . Construction Impeded . | . . . . Haulers Reinforced . | . . . . Active Scanning Responses . | . . . . Cargo Convoy Interrupts . | . . . . Stealth | -11 -10 -10 -10 --------- Run | Yrd Mat Min Sub Distress Signals 2 | . . 2 . Communications Jammed . | . . . . Distress Signals . | . . . . Times Spotted 27 | . 3 11 13 Peak Tracking Total 7 | . 2 4 7 Tactical Retreats 3 | . . 3 . Traps | -11 -10 -10 -10 ------- Run | Yrd Mat Min Sub Traps Triggered . | . . . . Indirectly . | . . . . Trap Hack Attempts . | . . . . Triggered . | . . . . Disarmed . | . . . . Reprogrammed . | . . . . Reused . | . . . . Traps Extracted . | . . . . Installed . | . . . . Triggered . | . . . . Machines | -11 -10 -10 -10 ---------- Run | Yrd Mat Min Sub Machines Disabled . | . . . . Max in Single Turn . | . . . . Machines Repaired . | . . . . Machines Dismantled . | . . . . Machines Sabotaged . | . . . . Overloaded Fab Kills . | . . . . Hacking | -11 -10 -10 -10 --------- Run | Yrd Mat Min Sub Machines Accessed 1 | . 1 . . Terminals 1 | . 1 . . Fabricators . | . . . . Repair Stations . | . . . . Recycling Units . | . . . . Scanalyzers . | . . . . Garrison Access . | . . . . Total Hacks 3 | . 3 . . Successful 1 | . 1 . . Failed 2 | . 2 . . Catastrophic 1 | . 1 . . Database Lockouts . | . . . . Manual . | . . . . Terminals 3 | . 3 . . Fabricators . | . . . . Repair Stations . | . . . . Recycling Units . | . . . . Scanalyzers . | . . . . Garrison Access . | . . . . Terminal Hacks 1 | . 1 . . Record 1 | . 1 . . Fabricator Hacks . | . . . . Repair Station Hacks . | . . . . Recycling Unit Hacks . | . . . . Scanalyzer . | . . . . Garrison Access Hacks . | . . . . Unauthorized Hacks . | . . . . Terminals . | . . . . Fabricators . | . . . . Repair Stations . | . . . . Recycling Units . | . . . . Scanalyzers . | . . . . Garrison Access . | . . . . Data Cores Recovered . | . . . . Used . | . . . . Hacking Detections 1 | . 1 . . Full Trace Events . | . . . . Feedback Events . | . . . . Feedback Blocked . | . . . . Robot Schematics Acquired . | . . . . Robots Built . | . . . . Authchips . | . . . . Time . | . . . . Total Robot Build Rating . | . . . . Part Schematics Acquired . | . . . . Parts Built . | . . . . Authchips . | . . . . Time . | . . . . Total Part Build Rating . | . . . . Parts Repaired . | . . . . Time . | . . . . Parts Recycled . | . . . . Recycled Matter . | . . . . Retrieved Matter . | . . . . Retrieved Components . | . . . . Parts Scanalyzed . | . . . . Part Schematics Acquired . | . . . . Parts Damaged . | . . . . Bothacking | -11 -10 -10 -10 ------------ Run | Yrd Mat Min Sub Used RIF Installer . | . . . . Robots Hacked . | . . . . Non-combat . | . . . . Combat . | . . . . Robot Hacks Applied . | . . . . Relay Couplers Released . | . . . . Fabnet Peak Effective % . | . . . . Robots Rewired . | . . . . Allies Hacked . | . . . . Hacks Repelled . | . . . . Allies | -11 -10 -10 -10 -------- Run | Yrd Mat Min Sub Total Allies . | . . . . Largest Group . | . . . . Highest-Rated Group . | . . . . Highest-Rated Ally . | . . . . Total Orders . | . . . . Ally Attacks . | . . . . Total Damage . | . . . . Kills . | . . . . Allies Corrupted . | . . . . Allies Melted . | . . . . Intel | -11 -10 -10 -10 ------- Run | Yrd Mat Min Sub Robot Analysis Total . | . . . . Derelict Logs Recovered 1 | . . 1 . Drone Launches . | . . . . Drone Recoveries . | . . . . Exploration | -11 -10 -10 -10 ------------- Run | Yrd Mat Min Sub Turns Passed 1459 | 89 151 794 425 Spaces Moved 837 | 50 90 481 216 Core 58 | 5 . 53 . Treads 125 | 45 80 . . Legs 224 | . . 86 138 Wheels 78 | . . . 78 Hover 352 | . 10 342 . Flight . | . . . . Fastest Speed 50 | 50 116 50 80 Average Speed 127 | 149 155 99 175 Slowest Speed 260 | 160 160 150 260 Overloaded Moves . | . . . . Propulsion Burnouts . | . . . . Robots Hopped . | . . . . Cave-ins Triggered . | . . . . Exploration Rate (%) 19 | 3 13 51 9 Regions Visited 3 Branch Regions 2 Pre-discovered Areas . | . . . . Known Exits Taken . | . . . . Unknown Exits Taken 3 | 1 1 1 . Scrap Searched 1 | . . 1 . Spaces Dug . | . . . . Terrain Destroyed 16 | . . 6 10 Melee . | . . . . Projectile . | . . . . AOE 16 | . . 6 10 Terrain Rammed . | . . . . Walls Destroyed . | . . . . Machines Disabled . | . . . . Actions | -11 -10 -10 -10 --------- Run | Yrd Mat Min Sub Total 1151 | 65 101 732 253 Wait 212 | 1 . 211 . Move 834 | 49 89 480 216 Hop . | . . . . Pick Up 26 | 8 4 3 11 Fast Attach . | . . . . Attach 25 | 6 4 3 12 Detach 2 | . 1 1 . Swap 2 | . . 1 1 Drop 8 | 1 2 . 5 Fire 42 | . 1 33 8 Melee . | . . . . Ram . | . . . . Kick . | . . . . Crush . | . . . . Escape Stasis . | . . . . Rewire . | . . . . Trap . | . . . . Miscellaneous . | . . . . Route ------- -11/Scrapyard -10/Materials -10/Mines -10/Subcaves History --------- Turn | Location | Event 12 | -11/Scrapyard | Discovered new exit (range 14) 90 | -11/Scrapyard | Entered Materials 153 | -10/Materials | Discovered new exit (range 8) 241 | -10/Materials | Entered Mines 281 | -10/Mines | Learned Materials terminal intel 308 | -10/Mines | Build established: Mutant 464 | -10/Mines | Excavation squad dispatched 464 | -10/Mines | A large section of the Mines collapsed 714 | -10/Mines | Excavation squad dispatched 764 | -10/Mines | Lost 5 parts (1p2n2w) 964 | -10/Mines | Excavation squad dispatched 1010 | -10/Mines | Discovered new exit (range 12) 1035 | -10/Mines | Entered Subcaves 1373 | -10/Subcaves | Disturbed a concealed Subdweller 1380 | -10/Subcaves | Ambushed by swarm of Subdwellers 1400 | -10/Subcaves | Core integrity fell below 50% 1448 | -10/Subcaves | Core integrity fell below 20% 1449 | -10/Subcaves | Lost 4 allies 1460 | -10/Subcaves | Destroyed by DU-UCI(R) with Subdweller Laser Last Messages --------------- Ion Engine destroyed. MZ-IIA(g) destroyed. S3-ZGC(R) suffers critical hit (Burn). OR-8MF(g) suffers critical hit (Destroy). OR-8MF(g) destroyed. U0-TX5(R) suffers critical hit (Burn). Acquired Imp. Heat Sink. U0-TX5(R) destroyed. Acquired Beamcaster. Sub. Monowheel shoots sparks and powers down. Acquired Imp. Heat Sink. EX-8HP(g) destroyed. Acquired Battle Rifle. 27-8V7(R) affixes Scrap Shield Fragment to Scrap Shield. Dropped Broken Sub. Monowheel. Dropped Wheel. Sml. Matter Pod destroyed. Lgt. Ion Engine destroyed. Imp. Heat Sink destroyed. Map ----- +----------------------------------------------------+ | ?????????????????????????????????????????????????? | | ?????????????????????????????????????????????????? | | ?????????????????????????????????????????????????? | | ###??????????????????????????????????????????????? | | ""##?????????????????????????????????????????????? | | "%"##????????????????????????????????????????????? | | %&#????????????????????????????????????????????? | | !*%"#????????????????????????????????????????????? | | &%%"#????????????????????????????????????????????? | | !=###????????????????####???##########???????????? | | #%##??###########??### ### ##??????????? | | "*"#### ## # #### ! #??????????? | | "%[## ## ### ##??????????? | | " &= ### ### #### #????#???????????? | | = ##### ## ## #?#???## ##???????????????? | | ###???# ## ### #?????# #???????????????? | | ##?????# #? ## ????### ##???????????????? | | # #?????## ##?? ##??## #???######????#?? | | ## #????## ##??# #### ##??? ##?? ? | | ? #??### ##### ## ##?? ## ? | | ? ?## RR ;# ##?# | | ## RRR #?# | | ### ##R R #### | | #?# ## ##### ### #??? | | #??#####?## ## ; #???????? | | ??????????# % ### @ =% ##???????? | | ??????????# ## * ##????????? | | ??????????# ## ##????????? | | ??????????# ### ## ##???????? | | ??????????# #?## ### #???????? | | ??????????#### ??### # ## #???????? | | ?????????????#### ????# ## # ##???????? | | ????????????????## #???# ### ## ##????????? | | ?????????????????# ???# #?##### ##????????? | | ?????????????????# #???# ?????# #????????? | | ?????????????????# ??? ?????## #????????? | | ?????????????????# ???## ??????## ##????????? | | ?????????????????# ??????#???????#####?????????? | | ??????????????????#??????????????????????????????? | | ?????????????????????????????????????????????????? | | ?????????????????????????????????????????????????? | | ?????????????????????????????????????????????????? | | ?????????????????????????????????????????????????? | | ?????????????????????????????????????????????????? | | ?????????????????????????????????????????????????? | | ?????????????????????????????????????????????????? | | ?????????????????????????????????????????????????? | | ?????????????????????????????????????????????????? | | ?????????????????????????????????????????????????? | | ?????????????????????????????????????????????????? | +----------------------------------------------------+ Best States ------------- Heat Dissipation 25 Energy Generation 10 Energy Capacity 250 Matter Stores 309 Matter Capacity 350 Sight Range 16 Terrain Scan Density 10 ECM Strength 1 Armor Coverage 800 Evasion (%) 55 Recoil Reduction 2 Item Schematics ----------------- None Robot Schematics ------------------ None Fabricated ------------ Nothing Alien Tech Used ----------------- None Achievements -------------- None Challenges ------------ None Game ------ Seed ImprinterWarlordStripper Manual? 0 Play Time 00:19:43 Cumulative 2.3 hours Start 2025.03.23 @ 20:27:31 End 2025.03.23 @ 20:49:49 Sessions 1 Manual Loads 0 Difficulty Rogue Special Mode None Game No. 7 Rogue 7 Adventurer 0 Explorer 0 Win Type - Total 0 Types 0/0/0/0/0/0/0/0/0 Lore% 6 Gallery% 6 Achievement% 8 Wizard Run 0 Options --------- Layout 1 ASCII 0 Keyboard 0 Movement Mouse Keybinds 0 Fullscreen 1 Font 32/SmallcapsGlow Map View 50x35 Zoom Use 27% Tactical HUD 0 Map Filters NONE Filters NONE Steam 1 RUN: 05ff6d6c-449b-44b8-9eac-214fe11d280e